[Event "Titled Tuesday Blitz May 24 Late 2022"]
[White "Vujic, Mihailo"]
[Black "Stanisz, Patryk"]
[WhiteFideId "918873"]
[BlackFideId "1123106"]
[WhiteElo "2256"]
[BlackElo "1833"]
[Result "1-0"]
[Round "02"]
[TimeControl "180+1"]
[Date "2022.05.25"]
[WhiteClock "0:02:10"]
[BlackClock "0:00:03"]

1. e4 {[%clk 0:02:59]}  c5 {[%clk 0:02:59]} 2. c3 {[%clk 0:02:58]}  Nf6 {[%clk 0:02:58]} 3. e5 {[%clk 0:02:58]}  Nd5 {[%clk 0:02:59]} 4. d4 {[%clk 0:02:59]}  cxd4 {[%clk 0:02:59]} 5. Nf3 {[%clk 0:03:00]}  Nc6 {[%clk 0:02:59]} 6. Bc4 {[%clk 0:02:58]}  Nb6 {[%clk 0:02:59]} 7. Bb3 {[%clk 0:02:58]}  d5 {[%clk 0:02:59]} 8. exd6 {[%clk 0:02:58]}  Qxd6 {[%clk 0:02:59]} 9. Na3 {[%clk 0:02:59]}  Be6 {[%clk 0:02:47]} 10. O-O {[%clk 0:02:57]}  Bxb3 {[%clk 0:02:46]} 11. axb3 {[%clk 0:02:57]}  e6 {[%clk 0:02:44]} 12. Nb5 {[%clk 0:02:55]}  Qd8 {[%clk 0:02:35]} 13. Nfxd4 {[%clk 0:02:54]}  Nxd4 {[%clk 0:02:32]} 14. Qxd4 {[%clk 0:02:55]}  Be7 {[%clk 0:02:25]} 15. Qxd8+ {[%clk 0:02:51]}  Bxd8 {[%clk 0:01:50]} 16. Rxa7 {[%clk 0:02:50]}  Rxa7 {[%clk 0:01:48]} 17. Nxa7 {[%clk 0:02:51]}  O-O {[%clk 0:01:48]} 18. Be3 {[%clk 0:02:50]}  Nd5 {[%clk 0:01:47]} 19. Nb5 {[%clk 0:02:48]}  Nxe3 {[%clk 0:01:45]} 20. fxe3 {[%clk 0:02:49]}  Bb6 {[%clk 0:01:45]} 21. Kf2 {[%clk 0:02:48]}  Rd8 {[%clk 0:01:45]} 22. Ke2 {[%clk 0:02:48]}  Rd5 {[%clk 0:01:44]} 23. Nd4 {[%clk 0:02:47]}  h6 {[%clk 0:01:38]} 24. Rd1 {[%clk 0:02:46]}  e5 {[%clk 0:01:31]} 25. Nf3 {[%clk 0:02:41]}  Rxd1 {[%clk 0:01:32]} 26. Kxd1 {[%clk 0:02:41]}  f6 {[%clk 0:01:25]} 27. e4 {[%clk 0:02:37]}  Kf7 {[%clk 0:01:26]} 28. Ke2 {[%clk 0:02:37]}  Ke6 {[%clk 0:01:25]} 29. Kd3 {[%clk 0:02:37]}  g5 {[%clk 0:01:16]} 30. g4 {[%clk 0:02:37]}  Bf2 {[%clk 0:01:05]} 31. h3 {[%clk 0:02:36]}  Kd6 {[%clk 0:01:03]} 32. b4 {[%clk 0:02:35]}  Kc6 {[%clk 0:01:01]} 33. c4 {[%clk 0:02:35]}  Kd6 {[%clk 0:01:01]} 34. b5 {[%clk 0:02:33]}  Kc5 {[%clk 0:01:00]} 35. Kc3 {[%clk 0:02:32]}  b6 {[%clk 0:00:56]} 36. b4+ {[%clk 0:02:32]}  Kd6 {[%clk 0:00:57]} 37. Kd3 {[%clk 0:02:31]}  Bg3 {[%clk 0:00:53]} 38. Nd2 {[%clk 0:02:26]}  Be1 {[%clk 0:00:51]} 39. Ke2 {[%clk 0:02:24]}  Bg3 {[%clk 0:00:50]} 40. Nb3 {[%clk 0:02:23]}  Bh2 {[%clk 0:00:43]} 41. c5+ {[%clk 0:02:22]}  Kc7 {[%clk 0:00:41]} 42. Kd3 {[%clk 0:02:21]}  Bg1 {[%clk 0:00:41]} 43. Kc4 {[%clk 0:02:21]}  Bf2 {[%clk 0:00:36]} 44. Kd5 {[%clk 0:02:21]}  Be1 {[%clk 0:00:37]} 45. c6 {[%clk 0:02:20]}  Bxb4 {[%clk 0:00:36]} 46. Ke6 {[%clk 0:02:20]}  Be1 {[%clk 0:00:20]} 47. Kxf6 {[%clk 0:02:20]}  Bf2 {[%clk 0:00:21]} 48. Kxe5 {[%clk 0:02:19]}  Bg3+ {[%clk 0:00:21]} 49. Ke6 {[%clk 0:02:18]}  Kb8 {[%clk 0:00:11]} 50. e5 {[%clk 0:02:16]}  h5 {[%clk 0:00:11]} 51. Kf6 {[%clk 0:02:16]}  hxg4 {[%clk 0:00:11]} 52. hxg4 {[%clk 0:02:16]}  Bf4 {[%clk 0:00:08]} 53. e6 {[%clk 0:02:17]}  Ka7 {[%clk 0:00:09]} 54. e7 {[%clk 0:02:17]}  Bc7 {[%clk 0:00:03]} 55. e8=Q {[%clk 0:02:16]}  Bd8+ {[%clk 0:00:04]} 56. Ke6 {[%clk 0:02:16]}  Bc7 {[%clk 0:00:01]} 57. Kd7 {[%clk 0:02:13]}  Bd8 {[%clk 0:00:01]} 58. Kxd8 {[%clk 0:02:11]}  Ka8 {[%clk 0:00:02]} 59. Kc7+ {[%clk 0:02:10]}  Ka7 {[%clk 0:00:03]} 60. Qb8# {[%clk 0:02:10]} 1-0


[Site "https://www.chess.com"]

[Event "Titled Tuesday Blitz May 24 Late 2022"]
[White "Zakhartsov, Vladimir"]
[Black "Ezat, Mohamed"]
[WhiteFideId "4145097"]
[BlackFideId "10600906"]
[WhiteElo "2428"]
[BlackElo "2386"]
[Result "1-0"]
[Round "02"]
[TimeControl "180+1"]
[Date "2022.05.24"]
[WhiteClock "0:01:59"]
[BlackClock "0:01:41"]

1. d4 {[%clk 0:03:00]}  Nf6 {[%clk 0:02:59]} 2. c4 {[%clk 0:03:00]}  g6 {[%clk 0:02:59]} 3. Nc3 {[%clk 0:03:00]}  Bg7 {[%clk 0:03:00]} 4. e4 {[%clk 0:03:00]}  d6 {[%clk 0:03:01]} 5. h3 {[%clk 0:02:58]}  O-O {[%clk 0:03:01]} 6. Be3 {[%clk 0:02:58]}  c5 {[%clk 0:03:00]} 7. d5 {[%clk 0:02:58]}  b5 {[%clk 0:02:59]} 8. cxb5 {[%clk 0:02:53]}  a6 {[%clk 0:02:59]} 9. a4 {[%clk 0:02:49]}  Nbd7 {[%clk 0:02:56]} 10. Nf3 {[%clk 0:02:48]}  axb5 {[%clk 0:02:51]} 11. Bxb5 {[%clk 0:02:49]}  Ba6 {[%clk 0:02:50]} 12. O-O {[%clk 0:02:48]}  Nb6 {[%clk 0:02:42]} 13. Qe2 {[%clk 0:02:42]}  Bxb5 {[%clk 0:02:40]} 14. axb5 {[%clk 0:02:42]}  Qc8 {[%clk 0:02:31]} 15. Ra6 {[%clk 0:02:40]}  Qb7 {[%clk 0:02:28]} 16. Rfa1 {[%clk 0:02:39]}  e6 {[%clk 0:02:28]} 17. dxe6 {[%clk 0:02:37]}  fxe6 {[%clk 0:02:28]} 18. e5 {[%clk 0:02:37]}  Nfd5 {[%clk 0:02:25]} 19. exd6 {[%clk 0:02:34]}  Nxc3 {[%clk 0:02:23]} 20. bxc3 {[%clk 0:02:34]}  Bxc3 {[%clk 0:02:23]} 21. Rxa8 {[%clk 0:02:33]}  Rxa8 {[%clk 0:02:22]} 22. Rxa8+ {[%clk 0:02:33]}  Qxa8 {[%clk 0:02:22]} 23. Bxc5 {[%clk 0:02:32]}  Nd5 {[%clk 0:02:02]} 24. Qxe6+ {[%clk 0:02:29]}  Kg7 {[%clk 0:02:03]} 25. d7 {[%clk 0:02:18]}  Bf6 {[%clk 0:02:00]} 26. Qe8 {[%clk 0:02:04]}  Qa1+ {[%clk 0:01:45]} 27. Kh2 {[%clk 0:02:04]}  h5 {[%clk 0:01:44]} 28. d8=Q {[%clk 0:02:01]}  Bxd8 {[%clk 0:01:43]} 29. Bd4+ {[%clk 0:02:00]}  Bf6 {[%clk 0:01:41]} 30. Bxa1 {[%clk 0:01:59]} 1-0


[Site "https://www.chess.com"]

[Event "Titled Tuesday Blitz May 24 Late 2022"]
[White "Zamorano, Jorge"]
[Black "Halak, Miklos"]
[WhiteFideId "173770"]
[BlackFideId "726400"]
[WhiteElo "2331"]
[BlackElo "2197"]
[Result "1/2-1/2"]
[Round "02"]
[TimeControl "180+1"]
[Date "2022.05.25"]
[WhiteClock "0:00:06"]
[BlackClock "0:00:12"]

1. e4 {[%clk 0:03:00]}  e5 {[%clk 0:02:59]} 2. Nf3 {[%clk 0:03:00]}  Nc6 {[%clk 0:03:00]} 3. Bb5 {[%clk 0:02:59]}  a6 {[%clk 0:03:00]} 4. Ba4 {[%clk 0:02:59]}  b5 {[%clk 0:03:00]} 5. Bb3 {[%clk 0:02:58]}  Na5 {[%clk 0:03:01]} 6. O-O {[%clk 0:02:53]}  d6 {[%clk 0:03:01]} 7. Re1 {[%clk 0:02:29]}  Bb7 {[%clk 0:02:59]} 8. c3 {[%clk 0:02:27]}  Nxb3 {[%clk 0:02:58]} 9. axb3 {[%clk 0:02:28]}  Be7 {[%clk 0:02:54]} 10. d4 {[%clk 0:02:27]}  Bf6 {[%clk 0:02:52]} 11. Nbd2 {[%clk 0:02:20]}  Ne7 {[%clk 0:02:48]} 12. Nf1 {[%clk 0:02:20]}  O-O {[%clk 0:02:46]} 13. Ng3 {[%clk 0:02:20]}  g6 {[%clk 0:02:46]} 14. Bh6 {[%clk 0:02:16]}  Re8 {[%clk 0:02:45]} 15. Qd2 {[%clk 0:02:11]}  exd4 {[%clk 0:02:39]} 16. cxd4 {[%clk 0:02:10]}  c5 {[%clk 0:02:38]} 17. Qf4 {[%clk 0:01:53]}  Nc6 {[%clk 0:02:26]} 18. e5 {[%clk 0:01:53]}  dxe5 {[%clk 0:02:23]} 19. dxe5 {[%clk 0:01:53]}  Bg7 {[%clk 0:02:19]} 20. Nh5 {[%clk 0:00:22]}  Bh8 {[%clk 0:01:52]} 21. Bg5 {[%clk 0:00:17]}  Ne7 {[%clk 0:00:55]} 22. Nf6+ {[%clk 0:00:14]}  Bxf6 {[%clk 0:00:47]} 23. Bxf6 {[%clk 0:00:14]}  Nd5 {[%clk 0:00:33]} 24. Qh4 {[%clk 0:00:04]}  Nxf6 {[%clk 0:00:33]} 25. exf6 {[%clk 0:00:05]}  Bxf3 {[%clk 0:00:28]} 26. gxf3 {[%clk 0:00:06]}  Qb6 {[%clk 0:00:25]} 27. Re7 {[%clk 0:00:05]}  Rf8 {[%clk 0:00:07]} 28. Rae1 {[%clk 0:00:04]}  Rad8 {[%clk 0:00:06]} 29. Kg2 {[%clk 0:00:04]}  Rd5 {[%clk 0:00:06]} 30. R1e4 {[%clk 0:00:03]}  Rh5 {[%clk 0:00:05]} 31. Qf4 {[%clk 0:00:03]}  Rf5 {[%clk 0:00:05]} 32. Qc7 {[%clk 0:00:02]}  Qxf6 {[%clk 0:00:06]} 33. Re3 {[%clk 0:00:01]}  Qg5+ {[%clk 0:00:06]} 34. Kf1 {[%clk 0:00:01]}  Qh5 {[%clk 0:00:06]} 35. Ke2 {[%clk 0:00:02]}  Rf6 {[%clk 0:00:05]} 36. Qd7 {[%clk 0:00:02]}  Rf5 {[%clk 0:00:06]} 37. Qd6 {[%clk 0:00:02]}  Qh6 {[%clk 0:00:06]} 38. Qxa6 {[%clk 0:00:02]}  Qg7 {[%clk 0:00:07]} 39. Qxb5 {[%clk 0:00:02]}  Qf6 {[%clk 0:00:08]} 40. Qc4 {[%clk 0:00:02]}  Rd8 {[%clk 0:00:09]} 41. Kf1 {[%clk 0:00:03]}  Rd1+ {[%clk 0:00:08]} 42. Ke2 {[%clk 0:00:04]}  Rd4 {[%clk 0:00:07]} 43. Re8+ {[%clk 0:00:04]}  Kg7 {[%clk 0:00:07]} 44. Qc3 {[%clk 0:00:04]}  Qd6 {[%clk 0:00:08]} 45. R8e4 {[%clk 0:00:03]}  Rf6 {[%clk 0:00:09]} 46. Rd3 {[%clk 0:00:03]}  Rxd3 {[%clk 0:00:09]} 47. Qxd3 {[%clk 0:00:04]}  Qc6 {[%clk 0:00:09]} 48. Qc3 {[%clk 0:00:03]}  Kg8 {[%clk 0:00:09]} 49. Kf1 {[%clk 0:00:04]}  h6 {[%clk 0:00:08]} 50. b4 {[%clk 0:00:05]}  cxb4 {[%clk 0:00:07]} 51. Qxc6 {[%clk 0:00:05]}  Rxc6 {[%clk 0:00:08]} 52. Rxb4 {[%clk 0:00:06]}  Rc1+ {[%clk 0:00:08]} 53. Kg2 {[%clk 0:00:06]}  Rc2 {[%clk 0:00:09]} 54. f4 {[%clk 0:00:06]}  Kg7 {[%clk 0:00:10]} 55. Kf3 {[%clk 0:00:07]}  Kf6 {[%clk 0:00:10]} 56. Rb6+ {[%clk 0:00:07]}  Kg7 {[%clk 0:00:10]} 57. h4 {[%clk 0:00:06]}  h5 {[%clk 0:00:10]} 58. f5 {[%clk 0:00:06]}  Rc4 {[%clk 0:00:09]} 59. fxg6 {[%clk 0:00:06]}  fxg6 {[%clk 0:00:10]} 60. Kg3 {[%clk 0:00:07]}  Rg4+ {[%clk 0:00:11]} 61. Kh3 {[%clk 0:00:07]}  Rf4 {[%clk 0:00:12]} 62. Kg3 {[%clk 0:00:05]}  Rg4+ {[%clk 0:00:12]} 63. Kh3 {[%clk 0:00:05]}  Rf4 {[%clk 0:00:12]} 64. b4 {[%clk 0:00:04]}  Rxf2 {[%clk 0:00:12]} 65. b5 {[%clk 0:00:05]}  Rb2 {[%clk 0:00:12]} 66. Rb7+ {[%clk 0:00:05]}  Kf6 {[%clk 0:00:12]} 67. Rb6+ {[%clk 0:00:06]}  Kg7 {[%clk 0:00:12]} 68. Rb7+ {[%clk 0:00:05]}  Kf6 {[%clk 0:00:12]} 69. Rb6+ {[%clk 0:00:06]}  Kg7 {[%clk 0:00:12]} 1/2-1/2


[Site "https://www.chess.com"]

[Event "Titled Tuesday Blitz May 24 Late 2022"]
[White "Zhurbinsky, David"]
[Black "Gorodetzky, David"]
[WhiteFideId "2072904"]
[BlackFideId "2813416"]
[WhiteElo "2570"]
[BlackElo "2494"]
[Result "0-1"]
[Round "02"]
[TimeControl "180+1"]
[Date "2022.05.24"]
[WhiteClock "0:00:53"]
[BlackClock "0:02:08"]

1. e4 {[%clk 0:03:00]}  e5 {[%clk 0:03:00]} 2. Nf3 {[%clk 0:03:01]}  Nc6 {[%clk 0:03:00]} 3. Bb5 {[%clk 0:03:01]}  a6 {[%clk 0:02:58]} 4. Ba4 {[%clk 0:03:02]}  Nf6 {[%clk 0:02:58]} 5. O-O {[%clk 0:03:02]}  Bc5 {[%clk 0:02:55]} 6. c3 {[%clk 0:03:02]}  O-O {[%clk 0:02:52]} 7. d4 {[%clk 0:03:02]}  Ba7 {[%clk 0:02:52]} 8. Bc2 {[%clk 0:02:59]}  d6 {[%clk 0:02:48]} 9. h3 {[%clk 0:02:59]}  h6 {[%clk 0:02:48]} 10. Re1 {[%clk 0:02:57]}  Re8 {[%clk 0:02:48]} 11. d5 {[%clk 0:02:26]}  Ne7 {[%clk 0:02:48]} 12. Be3 {[%clk 0:02:26]}  Bxe3 {[%clk 0:02:48]} 13. Rxe3 {[%clk 0:02:19]}  Ng6 {[%clk 0:02:49]} 14. Nbd2 {[%clk 0:02:13]}  Nf4 {[%clk 0:02:49]} 15. Nf1 {[%clk 0:02:10]}  g5 {[%clk 0:02:48]} 16. N3h2 {[%clk 0:02:08]}  h5 {[%clk 0:02:47]} 17. Rg3 {[%clk 0:02:03]}  Nh7 {[%clk 0:02:41]} 18. h4 {[%clk 0:02:00]}  g4 {[%clk 0:02:41]} 19. f3 {[%clk 0:01:54]}  Kh8 {[%clk 0:02:30]} 20. fxg4 {[%clk 0:01:49]}  hxg4 {[%clk 0:02:31]} 21. Nxg4 {[%clk 0:01:44]}  Qxh4 {[%clk 0:02:31]} 22. Qf3 {[%clk 0:01:28]}  Ng5 {[%clk 0:02:12]} 23. Qd1 {[%clk 0:00:55]}  Rg8 {[%clk 0:02:11]} 24. Nfe3 {[%clk 0:00:53]}  Qxg3 {[%clk 0:02:08]} 0-1


[Site "https://www.chess.com"]

[Event "Titled Tuesday Blitz May 24 Late 2022"]
[White "Al-Tarboush, Ward"]
[Black "Roque Sola, Gisela"]
[WhiteFideId "7601450"]
[BlackFideId "5120241"]
[WhiteElo "2294"]
[BlackElo "1863"]
[Result "1-0"]
[Round "03"]
[TimeControl "180+1"]
[Date "2022.05.25"]
[WhiteClock "0:02:57"]
[BlackClock "0:02:22"]

1. e4 {[%clk 0:03:00]}  e6 {[%clk 0:02:58]} 2. d4 {[%clk 0:03:00]}  d5 {[%clk 0:02:58]} 3. exd5 {[%clk 0:03:01]}  exd5 {[%clk 0:02:58]} 4. Bd3 {[%clk 0:03:01]}  Nc6 {[%clk 0:02:56]} 5. Nf3 {[%clk 0:03:00]}  Bd6 {[%clk 0:02:53]} 6. O-O {[%clk 0:03:00]}  Nge7 {[%clk 0:02:52]} 7. Re1 {[%clk 0:03:00]}  O-O {[%clk 0:02:51]} 8. Nbd2 {[%clk 0:02:59]}  Re8 {[%clk 0:02:46]} 9. Nf1 {[%clk 0:02:59]}  Nf5 {[%clk 0:02:45]} 10. Rxe8+ {[%clk 0:02:57]}  Qxe8 {[%clk 0:02:45]} 11. c3 {[%clk 0:02:58]}  Bd7 {[%clk 0:02:36]} 12. Ng3 {[%clk 0:02:58]}  Nxg3 {[%clk 0:02:35]} 13. hxg3 {[%clk 0:02:59]}  Ne7 {[%clk 0:02:33]} 14. Bf4 {[%clk 0:02:58]}  Bxf4 {[%clk 0:02:30]} 15. gxf4 {[%clk 0:02:59]}  Bg4 {[%clk 0:02:29]} 16. Bxh7+ {[%clk 0:02:57]}  Kxh7 {[%clk 0:02:28]} 17. Ng5+ {[%clk 0:02:57]}  Kg8 {[%clk 0:02:27]} 18. Qxg4 {[%clk 0:02:58]}  Qc8 {[%clk 0:02:23]} 19. Qh4 {[%clk 0:02:57]}  Qf5 {[%clk 0:02:22]} 20. Re1 {[%clk 0:02:57]}  Ng6 {[%clk 0:02:22]} 21. Qh7+ {[%clk 0:02:57]} 1-0


[Site "https://www.chess.com"]

[Event "Titled Tuesday Blitz May 24 Late 2022"]
[White "Arnold, Ken"]
[Black "Bernal Moro, Luis Javier"]
[WhiteFideId "2056836"]
[BlackFideId "2200236"]
[WhiteElo "2295"]
[BlackElo "2373"]
[Result "0-1"]
[Round "03"]
[TimeControl "180+1"]
[Date "2022.05.25"]
[WhiteClock "0:01:30"]
[BlackClock "0:01:12"]

1. d4 {[%clk 0:03:00]}  Nf6 {[%clk 0:02:57]} 2. c4 {[%clk 0:03:00]}  g6 {[%clk 0:02:57]} 3. Nc3 {[%clk 0:03:01]}  Bg7 {[%clk 0:02:57]} 4. Nf3 {[%clk 0:03:01]}  O-O {[%clk 0:02:56]} 5. Bf4 {[%clk 0:03:01]}  c5 {[%clk 0:02:50]} 6. e3 {[%clk 0:03:01]}  cxd4 {[%clk 0:02:45]} 7. exd4 {[%clk 0:03:00]}  d5 {[%clk 0:02:45]} 8. c5 {[%clk 0:02:58]}  b6 {[%clk 0:02:42]} 9. b4 {[%clk 0:02:56]}  a5 {[%clk 0:02:42]} 10. a3 {[%clk 0:02:56]}  axb4 {[%clk 0:02:41]} 11. axb4 {[%clk 0:02:56]}  Rxa1 {[%clk 0:02:40]} 12. Qxa1 {[%clk 0:02:56]}  Nc6 {[%clk 0:02:34]} 13. b5 {[%clk 0:02:52]}  Nb4 {[%clk 0:01:36]} 14. Qb1 {[%clk 0:02:18]}  bxc5 {[%clk 0:01:33]} 15. dxc5 {[%clk 0:02:16]}  Qa5 {[%clk 0:01:30]} 16. Bd2 {[%clk 0:02:09]}  Bf5 {[%clk 0:01:29]} 17. Ne4 {[%clk 0:01:37]}  Nxe4 {[%clk 0:01:12]} 18. Bxb4 {[%clk 0:01:30]}  Bc3+ {[%clk 0:01:12]} 0-1


[Site "https://www.chess.com"]

[Event "Titled Tuesday Blitz May 24 Late 2022"]
[White "Avramidou, Anastasia"]
[Black "Papasimakopoulos, Alexandros"]
[WhiteFideId "4239873"]
[BlackFideId "4244125"]
[WhiteElo "2183"]
[BlackElo "2340"]
[Result "0-1"]
[Round "03"]
[TimeControl "180+1"]
[Date "2022.05.25"]
[WhiteClock "0:00:03"]
[BlackClock "0:00:54"]

1. c4 {[%clk 0:02:58]}  f5 {[%clk 0:02:57]} 2. Nc3 {[%clk 0:02:58]}  Nf6 {[%clk 0:02:57]} 3. Nf3 {[%clk 0:02:57]}  d6 {[%clk 0:02:57]} 4. d4 {[%clk 0:02:57]}  g6 {[%clk 0:02:57]} 5. g3 {[%clk 0:02:57]}  Bg7 {[%clk 0:02:58]} 6. Bg2 {[%clk 0:02:58]}  O-O {[%clk 0:02:58]} 7. O-O {[%clk 0:02:59]}  e6 {[%clk 0:02:59]} 8. Re1 {[%clk 0:02:56]}  Ne4 {[%clk 0:02:56]} 9. Bf4 {[%clk 0:02:30]}  Nc6 {[%clk 0:02:43]} 10. Qd3 {[%clk 0:02:11]}  Nxc3 {[%clk 0:02:36]} 11. Qxc3 {[%clk 0:02:05]}  e5 {[%clk 0:02:36]} 12. dxe5 {[%clk 0:01:52]}  Qe8 {[%clk 0:02:36]} 13. Qb3 {[%clk 0:01:36]}  dxe5 {[%clk 0:02:35]} 14. Be3 {[%clk 0:01:33]}  e4 {[%clk 0:02:31]} 15. Ng5 {[%clk 0:01:28]}  h6 {[%clk 0:02:30]} 16. Nh3 {[%clk 0:01:20]}  g5 {[%clk 0:02:30]} 17. f3 {[%clk 0:01:14]}  Nd4 {[%clk 0:02:06]} 18. Qd1 {[%clk 0:00:56]}  c5 {[%clk 0:02:05]} 19. fxe4 {[%clk 0:00:49]}  f4 {[%clk 0:01:55]} 20. gxf4 {[%clk 0:00:28]}  Bxh3 {[%clk 0:01:55]} 21. Bxh3 {[%clk 0:00:27]}  Qxe4 {[%clk 0:01:54]} 22. Qd3 {[%clk 0:00:26]}  Qxd3 {[%clk 0:01:52]} 23. exd3 {[%clk 0:00:26]}  Nf3+ {[%clk 0:01:52]} 24. Kg2 {[%clk 0:00:25]}  Nxe1+ {[%clk 0:01:53]} 25. Rxe1 {[%clk 0:00:26]}  Rae8 {[%clk 0:01:37]} 26. fxg5 {[%clk 0:00:14]}  hxg5 {[%clk 0:01:36]} 27. Bd2 {[%clk 0:00:04]}  Rxe1 {[%clk 0:01:35]} 28. Bxe1 {[%clk 0:00:05]}  Bxb2 {[%clk 0:01:34]} 29. Bf2 {[%clk 0:00:04]}  b6 {[%clk 0:01:28]} 30. Bg3 {[%clk 0:00:04]}  Kg7 {[%clk 0:01:21]} 31. Be6 {[%clk 0:00:04]}  Bd4 {[%clk 0:01:19]} 32. Bd5 {[%clk 0:00:04]}  Re8 {[%clk 0:01:18]} 33. Be4 {[%clk 0:00:03]}  Be5 {[%clk 0:01:18]} 34. Bf2 {[%clk 0:00:03]}  Rh8 {[%clk 0:01:17]} 35. h3 {[%clk 0:00:04]}  Kf6 {[%clk 0:01:15]} 36. Be3 {[%clk 0:00:03]}  Bf4 {[%clk 0:01:15]} 37. Bf2 {[%clk 0:00:03]}  Ke5 {[%clk 0:01:15]} 38. Bg1 {[%clk 0:00:02]}  Rb8 {[%clk 0:01:07]} 39. Bc6 {[%clk 0:00:01]}  Kd6 {[%clk 0:01:04]} 40. Be4 {[%clk 0:00:01]}  b5 {[%clk 0:01:04]} 41. cxb5 {[%clk 0:00:02]}  Rxb5 {[%clk 0:01:04]} 42. Kf3 {[%clk 0:00:03]}  Ra5 {[%clk 0:00:56]} 43. h4 {[%clk 0:00:02]}  Rxa2 {[%clk 0:00:54]} 44. h5 {[%clk 0:00:02]}  Bc1 {[%clk 0:00:54]} 45. h6 {[%clk 0:00:02]}  g4+ {[%clk 0:00:54]} 46. Kxg4 {[%clk 0:00:03]}  Bxh6 {[%clk 0:00:54]} 47. Kh5 {[%clk 0:00:02]}  Bf4 {[%clk 0:00:53]} 48. Kg4 {[%clk 0:00:03]}  Be5 {[%clk 0:00:53]} 49. Kf5 {[%clk 0:00:03]}  Bd4 {[%clk 0:00:54]} 0-1


[Site "https://www.chess.com"]

[Event "Titled Tuesday Blitz May 24 Late 2022"]
[White "Bibasa, Bob"]
[Black "Kim, Yoon-Young"]
[WhiteFideId "10000240"]
[BlackFideId "30908779"]
[WhiteElo "2032"]
[BlackElo "2109"]
[Result "0-1"]
[Round "03"]
[TimeControl "180+1"]
[Date "2022.05.25"]
[WhiteClock "0:00:02"]
[BlackClock "0:00:08"]

1. e4 {[%clk 0:03:00]}  e5 {[%clk 0:02:59]} 2. Nf3 {[%clk 0:03:00]}  Nc6 {[%clk 0:03:00]} 3. Bc4 {[%clk 0:03:00]}  Nf6 {[%clk 0:03:00]} 4. d3 {[%clk 0:03:01]}  h6 {[%clk 0:02:59]} 5. c3 {[%clk 0:03:00]}  d6 {[%clk 0:02:59]} 6. Nbd2 {[%clk 0:02:58]}  g6 {[%clk 0:02:44]} 7. O-O {[%clk 0:02:48]}  Bg7 {[%clk 0:02:45]} 8. Re1 {[%clk 0:02:45]}  O-O {[%clk 0:02:43]} 9. a4 {[%clk 0:02:37]}  Re8 {[%clk 0:02:29]} 10. Qb3 {[%clk 0:02:20]}  Qe7 {[%clk 0:02:15]} 11. a5 {[%clk 0:02:15]}  a6 {[%clk 0:01:59]} 12. Nf1 {[%clk 0:01:54]}  Bg4 {[%clk 0:01:48]} 13. Ng3 {[%clk 0:01:30]}  Rab8 {[%clk 0:01:45]} 14. Nh4 {[%clk 0:01:21]}  Be6 {[%clk 0:01:38]} 15. Be3 {[%clk 0:00:49]}  Ng4 {[%clk 0:01:24]} 16. Bxe6 {[%clk 0:00:37]}  Qxe6 {[%clk 0:01:20]} 17. Qxe6 {[%clk 0:00:35]}  Rxe6 {[%clk 0:01:20]} 18. h3 {[%clk 0:00:34]}  Nxe3 {[%clk 0:01:18]} 19. fxe3 {[%clk 0:00:34]}  Rd8 {[%clk 0:01:01]} 20. d4 {[%clk 0:00:33]}  exd4 {[%clk 0:00:51]} 21. exd4 {[%clk 0:00:33]}  d5 {[%clk 0:00:49]} 22. exd5 {[%clk 0:00:30]}  Rxe1+ {[%clk 0:00:48]} 23. Rxe1 {[%clk 0:00:30]}  Rxd5 {[%clk 0:00:45]} 24. b4 {[%clk 0:00:30]}  Rd8 {[%clk 0:00:42]} 25. Kf1 {[%clk 0:00:21]}  Kf8 {[%clk 0:00:37]} 26. Ne4 {[%clk 0:00:20]}  b6 {[%clk 0:00:33]} 27. axb6 {[%clk 0:00:18]}  cxb6 {[%clk 0:00:34]} 28. Ra1 {[%clk 0:00:18]}  a5 {[%clk 0:00:34]} 29. bxa5 {[%clk 0:00:18]}  Nxa5 {[%clk 0:00:34]} 30. Rb1 {[%clk 0:00:17]}  Nc4 {[%clk 0:00:32]} 31. Ke2 {[%clk 0:00:17]}  Re8 {[%clk 0:00:32]} 32. Kd3 {[%clk 0:00:17]}  Rc8 {[%clk 0:00:26]} 33. Nf3 {[%clk 0:00:13]}  f5 {[%clk 0:00:24]} 34. Ned2 {[%clk 0:00:12]}  Nxd2 {[%clk 0:00:20]} 35. Kxd2 {[%clk 0:00:13]}  Rb8 {[%clk 0:00:18]} 36. Kd3 {[%clk 0:00:12]}  Ke7 {[%clk 0:00:18]} 37. Rb5 {[%clk 0:00:12]}  Kd6 {[%clk 0:00:18]} 38. Nd2 {[%clk 0:00:09]}  Kc6 {[%clk 0:00:18]} 39. c4 {[%clk 0:00:10]}  Ra8 {[%clk 0:00:17]} 40. d5+ {[%clk 0:00:10]}  Kc7 {[%clk 0:00:17]} 41. Rb3 {[%clk 0:00:08]}  Ra2 {[%clk 0:00:17]} 42. g4 {[%clk 0:00:08]}  Be5 {[%clk 0:00:17]} 43. gxf5 {[%clk 0:00:08]}  gxf5 {[%clk 0:00:18]} 44. Nf3 {[%clk 0:00:08]}  Bf6 {[%clk 0:00:18]} 45. Ke3 {[%clk 0:00:08]}  Rc2 {[%clk 0:00:14]} 46. Kf4 {[%clk 0:00:07]}  Rxc4+ {[%clk 0:00:11]} 47. Kxf5 {[%clk 0:00:07]}  Be7 {[%clk 0:00:08]} 48. Ke6 {[%clk 0:00:07]}  Bd6 {[%clk 0:00:08]} 49. Re3 {[%clk 0:00:06]}  b5 {[%clk 0:00:07]} 50. Nd2 {[%clk 0:00:06]}  Rc2 {[%clk 0:00:05]} 51. Ne4 {[%clk 0:00:06]}  Bb4 {[%clk 0:00:03]} 52. d6+ {[%clk 0:00:06]}  Kd8 {[%clk 0:00:04]} 53. d7 {[%clk 0:00:06]}  Rc6+ {[%clk 0:00:04]} 54. Kd5 {[%clk 0:00:05]}  Kxd7 {[%clk 0:00:05]} 55. Rd3 {[%clk 0:00:04]}  Be7 {[%clk 0:00:04]} 56. Ke5+ {[%clk 0:00:03]}  Kc7 {[%clk 0:00:05]} 57. Rd5 {[%clk 0:00:03]}  Rb6 {[%clk 0:00:04]} 58. Nc3 {[%clk 0:00:03]}  b4 {[%clk 0:00:04]} 59. Nb5+ {[%clk 0:00:04]}  Kc6 {[%clk 0:00:04]} 60. Nd4+ {[%clk 0:00:04]}  Kc7 {[%clk 0:00:04]} 61. Ra5 {[%clk 0:00:04]}  Rb7 {[%clk 0:00:04]} 62. Rb5 {[%clk 0:00:03]}  Rxb5+ {[%clk 0:00:03]} 63. Nxb5+ {[%clk 0:00:04]}  Kb6 {[%clk 0:00:04]} 64. Nd4 {[%clk 0:00:04]}  Kc5 {[%clk 0:00:05]} 65. Nb3+ {[%clk 0:00:04]}  Kc4 {[%clk 0:00:05]} 66. Na5+ {[%clk 0:00:04]}  Kc3 {[%clk 0:00:06]} 67. Ke6 {[%clk 0:00:04]}  Bg5 {[%clk 0:00:06]} 68. Kf5 {[%clk 0:00:04]}  Bd2 {[%clk 0:00:06]} 69. Kg4 {[%clk 0:00:05]}  Kd4 {[%clk 0:00:06]} 70. Nb3+ {[%clk 0:00:05]}  Kd3 {[%clk 0:00:07]} 71. Na5 {[%clk 0:00:05]}  Bc3 {[%clk 0:00:07]} 72. Nb3 {[%clk 0:00:05]}  Kc4 {[%clk 0:00:07]} 73. Nc1 {[%clk 0:00:05]}  Bd2 {[%clk 0:00:07]} 74. Na2 {[%clk 0:00:02]}  b3 {[%clk 0:00:07]} 75. Kh5 {[%clk 0:00:01]}  bxa2 {[%clk 0:00:08]} 76. h4 {[%clk 0:00:02]} 0-1


[Site "https://www.chess.com"]